[Event "January 9 Late 2024"]
[Site "https://www.chess.com"]
[Date "2024.01.09"]
[Round "11"]
[White "Kosteniuk, Alexandra"]
[Black "Sadovsky, Artem"]
[Result "1-0"]
[Board "42"]
[TimeControl "180+1"]
[WhiteFideId "4128125"]
[BlackFideId "4155840"]
[WhiteElo "2719"]
[BlackElo "2561"]
[WhiteTeam "SUI"]
[BlackTeam "FID"]
[WhiteClock "0:00:15"]
[BlackClock "0:00:00"]

1. e4 {[%clk 0:03:00]}  g6 {[%clk 0:02:54]} 2. d4 {[%clk 0:03:00]}  Bg7 {[%clk 0:02:50]} 3. Nf3 {[%clk 0:02:59]}  c6 {[%clk 0:02:50]} 4. c4 {[%clk 0:02:56]}  d5 {[%clk 0:02:50]} 5. e5 {[%clk 0:02:46]}  Nh6 {[%clk 0:02:48]} 6. Nc3 {[%clk 0:02:45]}  Nf5 {[%clk 0:02:48]} 7. cxd5 {[%clk 0:02:44]}  cxd5 {[%clk 0:02:48]} 8. g4 {[%clk 0:02:43]}  Nh6 {[%clk 0:02:42]} 9. h3 {[%clk 0:02:42]}  f6 {[%clk 0:02:42]} 10. Bf4 {[%clk 0:02:34]}  O-O {[%clk 0:02:40]} 11. Qd2 {[%clk 0:02:33]}  Nf7 {[%clk 0:02:40]} 12. Bg2 {[%clk 0:02:28]}  Nc6 {[%clk 0:02:40]} 13. exf6 {[%clk 0:02:20]}  exf6 {[%clk 0:02:38]} 14. O-O {[%clk 0:02:20]}  f5 {[%clk 0:02:29]} 15. g5 {[%clk 0:02:19]}  Nd6 {[%clk 0:02:25]} 16. Bxd6 {[%clk 0:02:13]}  Qxd6 {[%clk 0:02:26]} 17. Rfe1 {[%clk 0:02:13]}  Be6 {[%clk 0:02:17]} 18. Ne5 {[%clk 0:02:08]}  Rae8 {[%clk 0:02:12]} 19. f4 {[%clk 0:02:06]}  Nxe5 {[%clk 0:02:02]} 20. dxe5 {[%clk 0:02:00]}  Qb6+ {[%clk 0:02:03]} 21. Qf2 {[%clk 0:02:00]}  d4 {[%clk 0:02:03]} 22. Nd5 {[%clk 0:01:59]}  Bxd5 {[%clk 0:01:57]} 23. Bxd5+ {[%clk 0:02:00]}  Kh8 {[%clk 0:01:57]} 24. Rad1 {[%clk 0:01:58]}  Rd8 {[%clk 0:01:49]} 25. Bc4 {[%clk 0:01:57]}  Rfe8 {[%clk 0:01:42]} 26. Rd3 {[%clk 0:01:55]}  Qc5 {[%clk 0:01:38]} 27. Bb3 {[%clk 0:01:55]}  Bf8 {[%clk 0:01:33]} 28. Red1 {[%clk 0:01:54]}  Qc6 {[%clk 0:01:28]} 29. Kh2 {[%clk 0:01:48]}  Bc5 {[%clk 0:01:29]} 30. Kg3 {[%clk 0:01:39]}  Qe4 {[%clk 0:01:21]} 31. Qf3 {[%clk 0:01:38]}  b6 {[%clk 0:01:20]} 32. h4 {[%clk 0:01:37]}  h5 {[%clk 0:01:15]} 33. Bf7 {[%clk 0:01:32]}  Kg7 {[%clk 0:01:05]} 34. Bxe8 {[%clk 0:01:28]}  Rxe8 {[%clk 0:01:06]} 35. Qf2 {[%clk 0:01:20]}  a5 {[%clk 0:01:05]} 36. a3 {[%clk 0:01:10]}  a4 {[%clk 0:01:05]} 37. Qc2 {[%clk 0:01:02]}  Re7 {[%clk 0:00:40]} 38. Rf1 {[%clk 0:00:33]}  Rc7 {[%clk 0:00:33]} 39. Rff3 {[%clk 0:00:31]}  Qe1+ {[%clk 0:00:26]} 40. Qf2 {[%clk 0:00:29]}  Qe4 {[%clk 0:00:22]} 41. Qd2 {[%clk 0:00:22]}  b5 {[%clk 0:00:21]} 42. Rf2 {[%clk 0:00:22]}  Bb6 {[%clk 0:00:17]} 43. Re2 {[%clk 0:00:22]}  Qh1 {[%clk 0:00:17]} 44. e6 {[%clk 0:00:20]}  Rc1 {[%clk 0:00:17]} 45. e7 {[%clk 0:00:17]}  Rg1+ {[%clk 0:00:15]} 46. Rg2 {[%clk 0:00:17]}  Rxg2+ {[%clk 0:00:15]} 47. Qxg2 {[%clk 0:00:17]}  Qe1+ {[%clk 0:00:16]} 48. Kh3 {[%clk 0:00:17]}  Qxe7 {[%clk 0:00:16]} 49. Qc6 {[%clk 0:00:15]}  Qe4 {[%clk 0:00:08]} 50. Qd7+ {[%clk 0:00:13]}  Kf8 {[%clk 0:00:07]} 51. Qd6+ {[%clk 0:00:14]}  Kg7 {[%clk 0:00:04]} 52. Qf6+ {[%clk 0:00:14]}  Kh7 {[%clk 0:00:04]} 53. Qf7+ {[%clk 0:00:14]}  Kh8 {[%clk 0:00:05]} 54. Qf8+ {[%clk 0:00:13]}  Kh7 {[%clk 0:00:05]} 55. Qh6+ {[%clk 0:00:13]}  Kg8 {[%clk 0:00:06]} 56. Qxg6+ {[%clk 0:00:14]}  Kf8 {[%clk 0:00:06]} 57. Qf6+ {[%clk 0:00:14]}  Ke8 {[%clk 0:00:07]} 58. Qe5+ {[%clk 0:00:14]}  Kd7 {[%clk 0:00:06]} 59. Qxe4 {[%clk 0:00:14]}  fxe4 {[%clk 0:00:07]} 60. Rd1 {[%clk 0:00:14]}  Ke6 {[%clk 0:00:05]} 61. Kg2 {[%clk 0:00:13]}  Kf5 {[%clk 0:00:05]} 62. Kf2 {[%clk 0:00:13]}  d3+ {[%clk 0:00:06]} 63. Ke1 {[%clk 0:00:13]}  Kxf4 {[%clk 0:00:06]} 64. g6 {[%clk 0:00:13]}  Bd4 {[%clk 0:00:07]} 65. Rd2 {[%clk 0:00:14]}  Kf5 {[%clk 0:00:06]} 66. Rg2 {[%clk 0:00:14]}  Bg7 {[%clk 0:00:06]} 67. Rg5+ {[%clk 0:00:13]}  Kf4 {[%clk 0:00:06]} 68. Kd2 {[%clk 0:00:14]}  Kf3 {[%clk 0:00:04]} 69. Rf5+ {[%clk 0:00:14]}  Kg4 {[%clk 0:00:04]} 70. Rf7 {[%clk 0:00:14]}  Bh6+ {[%clk 0:00:03]} 71. Ke1 {[%clk 0:00:14]}  e3 {[%clk 0:00:00]} 72. g7 {[%clk 0:00:15]} 1-0

[Event "January 9 Late 2024"]
[Site "https://www.chess.com"]
[Date "2024.01.09"]
[Round "11"]
[White "Adewumi, Tanitoluwa"]
[Black "Aliakbarov, Anar"]
[Result "0-1"]
[Board "43"]
[TimeControl "180+1"]
[WhiteFideId "30966396"]
[BlackFideId "13401858"]
[WhiteElo "2717"]
[BlackElo "2557"]
[WhiteTeam "USA"]
[BlackTeam "TUR"]
[WhiteClock "0:00:03"]
[BlackClock "0:00:06"]

1. e4 {[%clk 0:02:49]}  e5 {[%clk 0:02:59]} 2. Nf3 {[%clk 0:02:45]}  Nc6 {[%clk 0:02:59]} 3. Bc4 {[%clk 0:02:38]}  Bc5 {[%clk 0:02:59]} 4. O-O {[%clk 0:02:35]}  Nf6 {[%clk 0:02:58]} 5. d3 {[%clk 0:02:35]}  d6 {[%clk 0:02:57]} 6. c3 {[%clk 0:02:33]}  a6 {[%clk 0:02:56]} 7. a4 {[%clk 0:02:32]}  h6 {[%clk 0:02:54]} 8. Re1 {[%clk 0:02:31]}  Ba7 {[%clk 0:02:53]} 9. Nbd2 {[%clk 0:02:30]}  O-O {[%clk 0:02:54]} 10. h3 {[%clk 0:02:30]}  Re8 {[%clk 0:02:54]} 11. b4 {[%clk 0:02:29]}  Be6 {[%clk 0:02:55]} 12. Bxe6 {[%clk 0:02:28]}  Rxe6 {[%clk 0:02:55]} 13. Qc2 {[%clk 0:02:27]}  Ne7 {[%clk 0:02:54]} 14. Nb3 {[%clk 0:02:24]}  Ng6 {[%clk 0:02:54]} 15. Be3 {[%clk 0:02:22]}  Bxe3 {[%clk 0:02:53]} 16. Rxe3 {[%clk 0:02:20]}  Nf4 {[%clk 0:02:50]} 17. Rd1 {[%clk 0:02:08]}  N6h5 {[%clk 0:02:47]} 18. d4 {[%clk 0:02:03]}  Rg6 {[%clk 0:02:47]} 19. g3 {[%clk 0:01:55]}  Qd7 {[%clk 0:02:22]} 20. Kf1 {[%clk 0:01:01]}  Qxh3+ {[%clk 0:02:19]} 21. Ke1 {[%clk 0:01:00]}  Ng2+ {[%clk 0:02:13]} 22. Ke2 {[%clk 0:00:52]}  Nxe3 {[%clk 0:02:12]} 23. Kxe3 {[%clk 0:00:53]}  exd4+ {[%clk 0:02:01]} 24. cxd4 {[%clk 0:00:48]}  Re8 {[%clk 0:01:47]} 25. Nbd2 {[%clk 0:00:37]}  Nf6 {[%clk 0:01:38]} 26. Re1 {[%clk 0:00:23]}  Nd5+ {[%clk 0:01:36]} 27. Ke2 {[%clk 0:00:22]}  Nxb4 {[%clk 0:01:33]} 28. Qxc7 {[%clk 0:00:18]}  Qc8 {[%clk 0:01:23]} 29. Qxc8 {[%clk 0:00:18]}  Rxc8 {[%clk 0:01:24]} 30. Rb1 {[%clk 0:00:18]}  a5 {[%clk 0:01:23]} 31. Nb3 {[%clk 0:00:17]}  b6 {[%clk 0:01:24]} 32. Nbd2 {[%clk 0:00:17]}  d5 {[%clk 0:01:22]} 33. exd5 {[%clk 0:00:16]}  Nxd5 {[%clk 0:01:20]} 34. Kd3 {[%clk 0:00:14]}  Rc3+ {[%clk 0:01:16]} 35. Ke2 {[%clk 0:00:14]}  Re6+ {[%clk 0:01:12]} 36. Kf1 {[%clk 0:00:13]}  Nb4 {[%clk 0:01:07]} 37. Ne5 {[%clk 0:00:12]}  Rc2 {[%clk 0:00:59]} 38. Ndf3 {[%clk 0:00:08]}  f6 {[%clk 0:00:56]} 39. Ng4 {[%clk 0:00:05]}  Nd3 {[%clk 0:00:54]} 40. d5 {[%clk 0:00:02]}  Rd6 {[%clk 0:00:48]} 41. Nd4 {[%clk 0:00:02]}  Rc4 {[%clk 0:00:43]} 42. Nf5 {[%clk 0:00:02]}  Rd7 {[%clk 0:00:40]} 43. Nge3 {[%clk 0:00:02]}  Rc1+ {[%clk 0:00:39]} 44. Rxc1 {[%clk 0:00:02]}  Nxc1 {[%clk 0:00:40]} 45. Nc4 {[%clk 0:00:01]}  g6 {[%clk 0:00:34]} 46. Nxb6 {[%clk 0:00:01]}  Rb7 {[%clk 0:00:32]} 47. d6 {[%clk 0:00:01]}  Kf7 {[%clk 0:00:13]} 48. d7 {[%clk 0:00:02]}  Rxd7 {[%clk 0:00:13]} 49. Nxh6+ {[%clk 0:00:02]}  Ke8 {[%clk 0:00:11]} 50. Nxd7 {[%clk 0:00:03]}  Kxd7 {[%clk 0:00:12]} 51. Ng4 {[%clk 0:00:03]}  Ke6 {[%clk 0:00:10]} 52. Ne3 {[%clk 0:00:04]}  Nd3 {[%clk 0:00:06]} 53. Ke2 {[%clk 0:00:04]}  Nc5 {[%clk 0:00:06]} 54. Nc4 {[%clk 0:00:04]}  Nxa4 {[%clk 0:00:07]} 55. Nxa5 {[%clk 0:00:05]}  Nc3+ {[%clk 0:00:07]} 56. Kf3 {[%clk 0:00:05]}  Nd5 {[%clk 0:00:08]} 57. Nc4 {[%clk 0:00:05]}  g5 {[%clk 0:00:08]} 58. Kg4 {[%clk 0:00:05]}  Ne7 {[%clk 0:00:07]} 59. Nd2 {[%clk 0:00:05]}  Ke5 {[%clk 0:00:07]} 60. Nc4+ {[%clk 0:00:04]}  Ke4 {[%clk 0:00:07]} 61. Ne3 {[%clk 0:00:05]}  Nc6 {[%clk 0:00:04]} 62. Nf1 {[%clk 0:00:02]}  Ne5+ {[%clk 0:00:05]} 63. Kh5 {[%clk 0:00:02]}  Kf3 {[%clk 0:00:06]} 64. Nh2+ {[%clk 0:00:02]}  Kxf2 {[%clk 0:00:06]} 65. Ng4+ {[%clk 0:00:02]}  Nxg4 {[%clk 0:00:05]} 66. Kxg4 {[%clk 0:00:03]}  Kg2 {[%clk 0:00:05]} 67. Kf5 {[%clk 0:00:04]}  Kxg3 {[%clk 0:00:05]} 68. Kxf6 {[%clk 0:00:03]}  g4 {[%clk 0:00:06]} 0-1

[Event "January 9 Late 2024"]
[Site "https://www.chess.com"]
[Date "2024.01.09"]
[Round "11"]
[White "Tan, Ralph"]
[Black "Rozman, Levy"]
[Result "0-1"]
[Board "44"]
[TimeControl "180+1"]
[WhiteFideId "30966590"]
[BlackFideId "2039877"]
[WhiteElo "2556"]
[BlackElo "2707"]
[WhiteTeam "USA"]
[BlackTeam "USA"]
[WhiteClock "0:00:00"]
[BlackClock "0:00:13"]

1. Nf3 {[%clk 0:03:00]}  g6 {[%clk 0:02:59]} 2. g3 {[%clk 0:03:00]}  Bg7 {[%clk 0:03:00]} 3. d4 {[%clk 0:03:01]}  d6 {[%clk 0:03:00]} 4. Bg2 {[%clk 0:03:00]}  Nc6 {[%clk 0:03:01]} 5. O-O {[%clk 0:03:00]}  Bd7 {[%clk 0:03:02]} 6. c4 {[%clk 0:03:00]}  Qc8 {[%clk 0:03:02]} 7. Nc3 {[%clk 0:03:00]}  Bh3 {[%clk 0:03:02]} 8. d5 {[%clk 0:02:54]}  Ne5 {[%clk 0:03:02]} 9. Nxe5 {[%clk 0:02:46]}  Bxe5 {[%clk 0:03:02]} 10. e4 {[%clk 0:02:45]}  h5 {[%clk 0:03:01]} 11. f4 {[%clk 0:02:42]}  Bg7 {[%clk 0:02:57]} 12. Be3 {[%clk 0:02:42]}  h4 {[%clk 0:02:56]} 13. f5 {[%clk 0:02:24]}  hxg3 {[%clk 0:02:48]} 14. hxg3 {[%clk 0:02:23]}  Be5 {[%clk 0:02:14]} 15. Qf3 {[%clk 0:02:19]}  Nf6 {[%clk 0:02:05]} 16. Ne2 {[%clk 0:01:58]}  Bg4 {[%clk 0:01:59]} 17. Qf2 {[%clk 0:01:56]}  gxf5 {[%clk 0:01:58]} 18. exf5 {[%clk 0:01:51]}  Qd7 {[%clk 0:01:20]} 19. Bd4 {[%clk 0:01:11]}  Bxe2 {[%clk 0:01:08]} 20. Bxe5 {[%clk 0:01:09]}  Bxf1 {[%clk 0:01:08]} 21. Bxf6 {[%clk 0:01:08]}  exf6 {[%clk 0:01:09]} 22. Re1+ {[%clk 0:01:05]}  Kf8 {[%clk 0:01:08]} 23. Rxf1 {[%clk 0:01:01]}  Re8 {[%clk 0:01:04]} 24. c5 {[%clk 0:00:34]}  dxc5 {[%clk 0:00:46]} 25. Qxc5+ {[%clk 0:00:35]}  Qe7 {[%clk 0:00:46]} 26. Qxe7+ {[%clk 0:00:21]}  Kxe7 {[%clk 0:00:43]} 27. Rc1 {[%clk 0:00:22]}  Kd6 {[%clk 0:00:43]} 28. Kf2 {[%clk 0:00:16]}  Re5 {[%clk 0:00:37]} 29. g4 {[%clk 0:00:12]}  a5 {[%clk 0:00:32]} 30. Rc3 {[%clk 0:00:10]}  Ra8 {[%clk 0:00:29]} 31. Rb3 {[%clk 0:00:09]}  Ra7 {[%clk 0:00:25]} 32. Kg3 {[%clk 0:00:07]}  a4 {[%clk 0:00:25]} 33. Rc3 {[%clk 0:00:07]}  Ra6 {[%clk 0:00:21]} 34. Bf3 {[%clk 0:00:05]}  Rb6 {[%clk 0:00:21]} 35. b3 {[%clk 0:00:05]}  a3 {[%clk 0:00:18]} 36. Rc4 {[%clk 0:00:05]}  Re1 {[%clk 0:00:16]} 37. Ra4 {[%clk 0:00:04]}  Ra6 {[%clk 0:00:15]} 38. Rb4 {[%clk 0:00:02]}  Ra1 {[%clk 0:00:15]} 39. Rxb7 {[%clk 0:00:02]}  Rxa2 {[%clk 0:00:15]} 40. Rb8 {[%clk 0:00:02]}  Rb2 {[%clk 0:00:12]} 41. Rd8+ {[%clk 0:00:00]}  Ke7 {[%clk 0:00:13]} 0-1

[Event "January 9 Late 2024"]
[Site "https://www.chess.com"]
[Date "2024.01.09"]
[Round "11"]
[White "Ferreira, Vitor Hugo Vieira"]
[Black "Manolache, Marius"]
[Result "0-1"]
[Board "46"]
[TimeControl "180+1"]
[WhiteFideId "2119765"]
[BlackFideId "1201530"]
[WhiteElo "2550"]
[BlackElo "2698"]
[WhiteTeam "BRA"]
[BlackTeam "ROU"]
[WhiteClock "0:00:35"]
[BlackClock "0:01:27"]

1. d4 {[%clk 0:03:00]}  Nf6 {[%clk 0:02:59]} 2. c4 {[%clk 0:03:00]}  d6 {[%clk 0:03:00]} 3. Nc3 {[%clk 0:03:00]}  e5 {[%clk 0:02:59]} 4. Nf3 {[%clk 0:02:58]}  Nbd7 {[%clk 0:02:59]} 5. g3 {[%clk 0:02:58]}  g6 {[%clk 0:02:59]} 6. Bg2 {[%clk 0:02:58]}  Bg7 {[%clk 0:02:59]} 7. O-O {[%clk 0:02:58]}  O-O {[%clk 0:02:59]} 8. h3 {[%clk 0:02:54]}  Re8 {[%clk 0:02:58]} 9. e4 {[%clk 0:02:54]}  a5 {[%clk 0:02:57]} 10. Be3 {[%clk 0:02:54]}  c6 {[%clk 0:02:56]} 11. Qc2 {[%clk 0:02:53]}  Qe7 {[%clk 0:02:54]} 12. Rfe1 {[%clk 0:02:52]}  Qf8 {[%clk 0:02:54]} 13. Rad1 {[%clk 0:02:52]}  Bh6 {[%clk 0:02:53]} 14. c5 {[%clk 0:02:26]}  Bxe3 {[%clk 0:02:51]} 15. Rxe3 {[%clk 0:02:27]}  exd4 {[%clk 0:02:50]} 16. Rxd4 {[%clk 0:02:14]}  Nxc5 {[%clk 0:02:48]} 17. Qd2 {[%clk 0:02:05]}  b5 {[%clk 0:02:35]} 18. Rxd6 {[%clk 0:02:01]}  Ncxe4 {[%clk 0:02:34]} 19. Nxe4 {[%clk 0:02:01]}  Nxe4 {[%clk 0:02:34]} 20. Rxe4 {[%clk 0:02:01]}  Rxe4 {[%clk 0:02:34]} 21. Ng5 {[%clk 0:02:01]}  Re2 {[%clk 0:02:10]} 22. Qxe2 {[%clk 0:01:19]}  Qxd6 {[%clk 0:02:10]} 23. Qe8+ {[%clk 0:01:20]}  Qf8 {[%clk 0:02:10]} 24. Qxc6 {[%clk 0:01:21]}  Rb8 {[%clk 0:01:59]} 25. Bd5 {[%clk 0:01:20]}  Bb7 {[%clk 0:01:59]} 26. Qd7 {[%clk 0:01:04]}  Bxd5 {[%clk 0:01:57]} 27. Qxd5 {[%clk 0:01:05]}  Qe7 {[%clk 0:01:51]} 28. h4 {[%clk 0:00:53]}  h6 {[%clk 0:01:47]} 29. Ne4 {[%clk 0:00:52]}  Rd8 {[%clk 0:01:44]} 30. Qc6 {[%clk 0:00:50]}  Rd4 {[%clk 0:01:28]} 31. Nf6+ {[%clk 0:00:45]}  Kg7 {[%clk 0:01:27]} 32. Nd5 {[%clk 0:00:41]}  Qe1+ {[%clk 0:01:26]} 33. Kh2 {[%clk 0:00:37]}  Qxf2+ {[%clk 0:01:27]} 34. Kh3 {[%clk 0:00:37]}  Qf5+ {[%clk 0:01:27]} 35. Kg2 {[%clk 0:00:35]}  Qxd5+ {[%clk 0:01:27]} 0-1

[Event "January 9 Late 2024"]
[Site "https://www.chess.com"]
[Date "2024.01.09"]
[Round "11"]
[White "Sieciechowicz, Marcin"]
[Black "Pourkashiyan, Atousa"]
[Result "1-0"]
[Board "48"]
[TimeControl "180+1"]
[WhiteFideId "1130170"]
[BlackFideId "12502014"]
[WhiteElo "2690"]
[BlackElo "2518"]
[WhiteTeam "POL"]
[BlackTeam "USA"]
[WhiteClock "0:02:37"]
[BlackClock "0:00:47"]

1. d4 {[%clk 0:03:00]}  Nf6 {[%clk 0:02:53]} 2. Bf4 {[%clk 0:02:57]}  d5 {[%clk 0:02:53]} 3. e3 {[%clk 0:02:57]}  c5 {[%clk 0:02:53]} 4. c3 {[%clk 0:02:58]}  Nc6 {[%clk 0:02:54]} 5. Nd2 {[%clk 0:02:58]}  e6 {[%clk 0:02:54]} 6. Ngf3 {[%clk 0:02:57]}  Bd6 {[%clk 0:02:55]} 7. Bg3 {[%clk 0:02:57]}  O-O {[%clk 0:02:55]} 8. Bd3 {[%clk 0:02:57]}  b6 {[%clk 0:02:53]} 9. e4 {[%clk 0:02:55]}  dxe4 {[%clk 0:02:52]} 10. Nxe4 {[%clk 0:02:55]}  Nxe4 {[%clk 0:02:50]} 11. Bxe4 {[%clk 0:02:56]}  Bb7 {[%clk 0:02:45]} 12. dxc5 {[%clk 0:02:51]}  Bxc5 {[%clk 0:02:40]} 13. Qa4 {[%clk 0:02:50]}  Na5 {[%clk 0:02:30]} 14. Rd1 {[%clk 0:02:45]}  Qe8 {[%clk 0:02:13]} 15. Bxh7+ {[%clk 0:02:44]}  Kxh7 {[%clk 0:02:12]} 16. Qh4+ {[%clk 0:02:40]}  Kg6 {[%clk 0:01:04]} 17. Qg5+ {[%clk 0:02:37]}  Kh7 {[%clk 0:01:04]} 18. Qh5+ {[%clk 0:02:37]}  Kg8 {[%clk 0:01:03]} 19. Ng5 {[%clk 0:02:38]}  Bxf2+ {[%clk 0:00:47]} 20. Bxf2 {[%clk 0:02:37]} 1-0

[Event "January 9 Late 2024"]
[Site "https://www.chess.com"]
[Date "2024.01.09"]
[Round "11"]
[White "Kleiman, Jake"]
[Black "Nikologorsky, Matfei"]
[Result "1-0"]
[Board "50"]
[TimeControl "180+1"]
[WhiteFideId "2020041"]
[BlackFideId "24102474"]
[WhiteElo "2669"]
[BlackElo "2479"]
[WhiteTeam "USA"]
[BlackTeam "FID"]
[WhiteClock "0:00:45"]
[BlackClock "0:00:25"]

1. e4 {[%clk 0:03:00]}  c5 {[%clk 0:02:59]} 2. c3 {[%clk 0:03:00]}  d5 {[%clk 0:02:58]} 3. exd5 {[%clk 0:03:00]}  Qxd5 {[%clk 0:02:58]} 4. d4 {[%clk 0:03:01]}  Nf6 {[%clk 0:02:57]} 5. Nf3 {[%clk 0:03:02]}  e6 {[%clk 0:02:57]} 6. Na3 {[%clk 0:03:02]}  Nc6 {[%clk 0:02:57]} 7. Be3 {[%clk 0:03:02]}  cxd4 {[%clk 0:02:53]} 8. Nb5 {[%clk 0:03:03]}  Qd8 {[%clk 0:02:53]} 9. Nbxd4 {[%clk 0:03:03]}  Bd7 {[%clk 0:02:49]} 10. Bd3 {[%clk 0:03:03]}  Be7 {[%clk 0:02:48]} 11. O-O {[%clk 0:03:03]}  O-O {[%clk 0:02:49]} 12. Qe2 {[%clk 0:03:03]}  Nd5 {[%clk 0:02:48]} 13. Bd2 {[%clk 0:03:00]}  g6 {[%clk 0:02:40]} 14. Rad1 {[%clk 0:02:56]}  Bf6 {[%clk 0:02:38]} 15. Rfe1 {[%clk 0:02:53]}  Qb6 {[%clk 0:02:31]} 16. Bh6 {[%clk 0:02:48]}  Rfe8 {[%clk 0:02:25]} 17. Nxc6 {[%clk 0:02:45]}  Bxc6 {[%clk 0:02:23]} 18. Ne5 {[%clk 0:02:46]}  Ba4 {[%clk 0:02:13]} 19. Rd2 {[%clk 0:02:41]}  Rad8 {[%clk 0:02:08]} 20. h4 {[%clk 0:02:33]}  Qc7 {[%clk 0:01:57]} 21. Ng4 {[%clk 0:01:58]}  Bh8 {[%clk 0:01:53]} 22. Bg5 {[%clk 0:01:47]}  Bg7 {[%clk 0:01:37]} 23. Bxd8 {[%clk 0:01:44]}  Rxd8 {[%clk 0:01:34]} 24. g3 {[%clk 0:01:36]}  h5 {[%clk 0:01:27]} 25. Ne5 {[%clk 0:01:34]}  Ne7 {[%clk 0:01:20]} 26. Nxf7 {[%clk 0:01:06]}  Kxf7 {[%clk 0:01:16]} 27. Qxe6+ {[%clk 0:01:06]}  Kf8 {[%clk 0:01:17]} 28. Bc4 {[%clk 0:01:04]}  Be8 {[%clk 0:01:10]} 29. Rde2 {[%clk 0:00:51]}  b5 {[%clk 0:00:45]} 30. Bb3 {[%clk 0:00:48]}  Rd7 {[%clk 0:00:44]} 31. Re3 {[%clk 0:00:46]}  Bh6 {[%clk 0:00:25]} 32. Qf6+ {[%clk 0:00:45]} 1-0